{"text_format":"1","workbook":"xlsx","n_sheets":1,"sheets":["стр.1_5"],"not_rendered":{"charts":0,"images":0,"macros":0,"external_links":0,"defined_names":1,"comments":0,"pivot_tables":0},"unopened":[],"bounds":{"document_bytes":16777216,"sheet_cells":100000,"rows_first":2000,"rows_last":500,"rows_between":2000,"halvings":0,"cell_chars":16384,"cell_head_chars":4096},"cells_cut":0,"cells_raw":0,"read":"whole","date_system":"1900"}

{"sheet":"стр.1_5","index":0,"n_rows":161,"n_cols":164,"rows_kept":161,"cut":false,"hidden":false,"merged":[[65,148,65,163],[65,133,65,147],[65,120,65,132],[65,107,65,119],[64,133,64,147],[62,120,63,132],[62,76,63,90],[62,91,63,106],[62,107,63,119],[65,0,65,48],[65,49,65,54],[65,55,65,61],[65,62,65,75],[64,49,64,54],[61,49,61,54],[64,62,64,75],[64,55,64,61],[61,62,61,75],[66,148,67,163],[62,148,63,163],[66,133,67,147],[62,133,63,147],[64,148,64,163],[57,107,57,119],[58,107,58,119],[59,107,59,119],[56,76,56,90],[54,76,55,90],[62,62,63,75],[61,120,61,132],[54,133,55,147],[61,133,61,147],[58,133,58,147],[60,120,60,132],[60,133,60,147],[54,120,55,132],[57,120,57,132],[59,0,59,48],[59,49,59,54],[59,55,59,61],[60,0,60,48],[56,91,56,106],[56,107,56,119],[56,62,56,75],[60,49,60,54],[59,76,59,90],[58,91,58,106],[54,0,54,48],[54,49,55,54],[58,49,58,54],[55,0,55,48],[57,0,57,48],[56,49,56,54],[56,0,56,48],[58,0,58,48],[57,49,57,54],[63,0,63,48],[62,49,63,54],[60,55,60,61],[62,55,63,61],[62,0,62,48],[61,55,61,61],[61,0,61,48],[51,91,51,106],[60,91,60,106],[52,91,52,106],[64,0,64,48],[59,148,59,163],[54,91,55,106],[54,107,55,119],[56,148,56,163],[59,120,59,132],[57,148,57,163],[53,120,53,132],[53,148,53,163],[54,148,55,163],[53,91,53,106],[53,76,53,90],[61,91,61,106],[61,76,61,90],[58,148,58,163],[58,120,58,132],[57,133,57,147],[52,49,52,54],[52,62,52,75],[58,55,58,61],[57,55,57,61],[57,91,57,106],[54,62,55,75],[58,62,58,75],[57,62,57,75],[56,55,56,61],[54,55,55,61],[49,107,50,119],[52,76,52,90],[53,107,53,119],[51,76,51,90],[51,107,51,119],[51,0,51,48],[51,62,51,75],[52,0,52,48],[51,55,51,61],[52,107,52,119],[53,49,53,54],[49,62,50,75],[49,91,50,106],[46,91,46,106],[46,62,46,75],[47,76,48,90],[46,76,46,90],[49,76,50,90],[47,91,48,106],[53,62,53,75],[53,0,53,48],[52,55,52,61],[47,55,48,61],[49,55,50,61],[48,0,48,48],[47,0,47,48],[49,0,49,48],[50,0,50,48],[51,49,51,54],[49,49,50,54],[33,49,33,54],[43,49,44,54],[46,49,46,54],[40,49,40,54],[38,55,38,61],[45,55,45,61],[45,133,45,147],[46,148,46,163],[47,133,48,147],[47,148,48,163],[46,133,46,147],[36,49,37,54],[39,120,39,132],[38,62,38,75],[39,55,39,61],[36,76,37,90],[38,0,38,48],[38,49,38,54],[46,0,46,48],[43,0,44,48],[45,0,45,48],[45,49,45,54],[46,107,46,119],[44,120,44,132],[44,107,44,119],[45,107,45,119],[44,76,44,90],[45,76,45,90],[45,120,45,132],[45,91,45,106],[40,91,40,106],[47,62,48,75],[36,133,37,147],[35,76,35,90],[36,120,37,132],[36,107,37,119],[35,133,35,147],[36,91,37,106],[35,91,35,106],[45,62,45,75],[26,120,26,132],[29,107,29,119],[39,62,39,75],[36,62,37,75],[38,76,38,90],[39,91,39,106],[39,76,39,90],[30,107,30,119],[38,91,38,106],[35,120,35,132],[31,107,31,119],[33,62,33,75],[34,76,34,90],[34,62,34,75],[33,148,33,163],[38,148,38,163],[38,133,38,147],[33,133,33,147],[23,91,24,106],[26,76,26,90],[27,62,28,75],[25,76,25,90],[25,62,25,75],[23,62,24,75],[25,107,25,119],[38,107,38,119],[32,107,32,119],[33,120,33,132],[29,120,29,132],[29,76,29,90],[27,91,28,106],[33,91,33,106],[33,76,33,90],[32,91,32,106],[22,91,22,106],[23,120,24,132],[25,49,25,54],[26,49,26,54],[27,49,28,54],[26,107,26,119],[25,120,25,132],[23,49,24,54],[27,120,28,132],[23,107,24,119],[26,55,26,61],[25,91,25,106],[20,107,20,119],[32,0,32,48],[34,0,34,48],[34,49,34,54],[34,55,34,61],[33,0,33,48],[32,55,32,61],[32,49,32,54],[21,55,21,61],[23,55,24,61],[31,55,31,61],[22,107,22,119],[22,76,22,90],[22,120,22,132],[29,91,29,106],[22,55,22,61],[22,62,22,75],[27,107,28,119],[15,76,15,90],[15,91,15,106],[20,91,20,106],[26,62,26,75],[27,55,28,61],[23,0,23,48],[22,0,22,48],[21,0,21,48],[20,0,20,48],[23,76,24,90],[14,133,14,147],[16,107,16,119],[16,133,16,147],[13,148,14,163],[1,148,1,163],[16,76,16,90],[15,120,15,132],[3,82,3,85],[16,148,16,163],[16,91,16,106],[21,148,21,163],[20,120,20,132],[18,76,19,90],[20,62,20,75],[18,148,19,163],[15,148,15,163],[16,120,16,132],[15,107,15,119],[17,76,17,90],[17,120,17,132],[20,49,20,54],[18,55,19,61],[17,55,17,61],[21,49,21,54],[18,49,19,54],[23,148,24,163],[17,148,17,163],[17,62,17,75],[17,107,17,119],[20,148,20,163],[8,49,8,132],[14,120,14,132],[14,91,14,106],[13,49,14,54],[22,148,22,163],[22,133,22,147],[18,120,19,132],[18,91,19,106],[18,107,19,119],[21,62,21,75],[17,0,17,48],[13,76,13,147],[21,91,21,106],[21,76,21,90],[17,91,17,106],[20,76,20,90],[15,49,15,54],[14,76,14,90],[17,49,17,54],[21,120,21,132],[15,55,15,61],[20,55,20,61],[16,55,16,61],[18,62,19,75],[15,62,15,75],[16,62,16,75],[15,133,15,147],[18,133,19,147],[17,133,17,147],[21,133,21,147],[20,133,20,147],[23,133,24,147],[19,0,19,48],[18,0,18,48],[24,0,24,48],[25,55,25,61],[25,0,25,48],[26,133,26,147],[25,133,25,147],[26,0,26,48],[22,49,22,54],[21,107,21,119],[29,148,29,163],[0,1,0,146],[16,0,16,48],[16,49,16,54],[3,61,3,81],[14,107,14,119],[13,62,14,75],[15,0,15,48],[1,1,1,146],[3,86,3,88],[12,0,12,163],[13,55,14,61],[4,30,4,131],[8,148,8,163],[7,148,7,163],[9,148,9,163],[10,148,10,163],[13,0,14,48],[5,49,5,132],[9,49,9,132],[2,148,2,163],[3,148,3,163],[4,148,4,163],[6,148,6,163],[5,148,5,163],[11,148,11,163],[27,76,28,90],[6,49,6,132],[30,55,30,61],[40,0,40,48],[43,148,44,163],[43,76,43,147],[43,55,44,61],[40,62,40,75],[43,62,44,75],[26,91,26,106],[29,62,29,75],[30,0,30,48],[30,49,30,54],[29,55,29,61],[27,0,27,48],[28,0,28,48],[29,0,29,48],[29,49,29,54],[32,133,32,147],[31,148,31,163],[32,148,32,163],[30,133,30,147],[30,62,30,75],[30,76,30,90],[30,120,30,132],[32,62,32,75],[31,62,31,75],[32,76,32,90],[37,0,37,48],[61,148,61,163],[44,91,44,106],[47,107,48,119],[34,148,34,163],[36,148,37,163],[35,62,35,75],[35,148,35,163],[34,133,34,147],[34,107,34,119],[71,0,72,48],[31,0,31,48],[53,55,53,61],[39,0,39,48],[36,55,37,61],[39,49,39,54],[31,49,31,54],[35,0,35,48],[35,49,35,54],[35,55,35,61],[36,0,36,48],[40,55,40,61],[51,120,51,132],[52,148,52,163],[52,133,52,147],[41,29,41,134],[46,55,46,61],[47,49,48,54],[45,148,45,163],[46,120,46,132],[74,120,74,132],[60,148,60,163],[47,120,48,132],[34,120,34,132],[39,107,39,119],[44,133,44,147],[38,120,38,132],[35,107,35,119],[39,133,39,147],[39,148,39,163],[66,91,67,106],[65,76,65,90],[64,120,64,132],[25,148,25,163],[78,148,78,163],[78,120,78,132],[77,133,77,147],[77,120,77,132],[77,148,77,163],[53,133,53,147],[71,76,71,147],[71,55,72,61],[72,133,72,147],[72,120,72,132],[68,107,68,119],[68,49,68,54],[59,62,59,75],[64,76,64,90],[61,107,61,119],[64,91,64,106],[60,107,60,119],[60,76,60,90],[60,62,60,75],[59,91,59,106],[68,120,68,132],[68,133,68,147],[68,91,68,106],[64,107,64,119],[58,76,58,90],[57,76,57,90],[66,120,67,132],[66,76,67,90],[66,107,67,119],[65,91,65,106],[66,0,66,48],[66,62,67,75],[66,49,67,54],[66,55,67,61],[68,62,68,75],[68,0,68,48],[68,55,68,61],[26,148,26,163],[59,133,59,147],[49,148,50,163],[27,133,28,147],[31,133,31,147],[51,148,51,163],[40,133,40,147],[27,148,28,163],[29,133,29,147],[30,148,30,163],[30,91,30,106],[33,55,33,61],[31,76,31,90],[31,120,31,132],[40,120,40,132],[40,76,40,90],[32,120,32,132],[33,107,33,119],[31,91,31,106],[34,91,34,106],[73,133,73,147],[40,148,40,163],[40,107,40,119],[56,120,56,132],[56,133,56,147],[51,133,51,147],[49,133,50,147],[49,120,50,132],[52,120,52,132],[68,148,68,163],[73,49,73,54],[73,0,73,48],[74,0,74,48],[78,133,78,147],[73,62,73,75],[74,62,74,75],[77,62,77,75],[75,107,76,119],[75,91,76,106],[78,107,78,119],[67,0,67,48],[68,76,68,90],[73,55,73,61],[74,55,74,61],[78,0,78,48],[78,49,78,54],[75,0,75,48],[77,0,77,48],[74,49,74,54],[71,49,72,54],[73,76,73,90],[72,91,72,106],[72,107,72,119],[72,76,72,90],[74,76,74,90],[78,55,78,61],[77,76,77,90],[78,91,78,106],[77,107,77,119],[81,107,81,119],[79,120,80,132],[75,133,76,147],[75,148,76,163],[75,120,76,132],[73,148,73,163],[74,148,74,163],[74,133,74,147],[74,107,74,119],[73,107,73,119],[75,55,76,61],[75,76,76,90],[75,62,76,75],[71,148,72,163],[76,0,76,48],[75,49,76,54],[73,91,73,106],[73,120,73,132],[74,91,74,106],[71,62,72,75],[77,49,77,54],[77,91,77,106],[78,76,78,90],[77,55,77,61],[78,62,78,75],[79,107,80,119],[79,76,80,90],[79,62,80,75],[83,0,83,48],[83,49,83,54],[79,0,79,48],[79,55,80,61],[81,0,81,48],[80,0,80,48],[81,55,81,61],[82,0,82,48],[83,55,83,61],[82,49,82,54],[79,49,80,54],[81,49,81,54],[82,55,82,61],[82,91,82,106],[79,91,80,106],[81,91,81,106],[82,76,82,90],[81,62,81,75],[81,76,81,90],[82,133,82,147],[81,148,81,163],[82,62,82,75],[83,62,83,75],[83,76,83,90],[82,120,82,132],[83,91,83,106],[83,107,83,119],[82,107,82,119],[81,120,81,132],[84,91,85,106],[86,107,86,119],[84,120,85,132],[86,148,86,163],[86,91,86,106],[84,107,85,119],[84,133,85,147],[79,148,80,163],[86,120,86,132],[83,133,83,147],[79,133,80,147],[81,133,81,147],[82,148,82,163],[83,148,83,163],[84,148,85,163],[83,120,83,132],[86,133,86,147],[94,148,94,163],[91,148,92,163],[90,120,90,132],[90,148,90,163],[91,133,92,147],[94,120,94,132],[87,76,87,90],[86,76,86,90],[90,76,90,90],[88,62,88,75],[88,76,88,90],[93,148,93,163],[89,108,89,119],[88,107,88,119],[89,63,89,75],[89,76,89,90],[90,107,90,119],[90,62,90,75],[85,0,85,48],[87,0,87,48],[87,148,87,163],[90,133,90,147],[91,120,92,132],[91,76,92,90],[88,91,88,106],[89,149,89,164],[89,121,89,132],[88,148,88,163],[88,0,88,48],[92,0,92,48],[90,0,90,48],[89,0,89,48],[84,62,85,75],[84,49,85,54],[86,49,86,54],[86,55,86,61],[84,0,84,48],[86,0,86,48],[94,49,94,54],[93,55,93,61],[96,49,96,54],[87,55,87,61],[89,55,89,60],[88,55,88,61],[87,49,87,54],[88,49,88,54],[90,55,90,61],[90,49,90,54],[94,107,94,119],[87,133,87,147],[87,120,87,132],[88,120,88,132],[88,133,88,147],[93,62,93,75],[89,133,89,147],[91,107,92,119],[90,91,90,106],[87,107,87,119],[94,91,94,106],[97,91,97,106],[94,76,94,90],[97,0,97,48],[96,0,96,48],[97,49,97,54],[96,91,96,106],[96,76,96,90],[96,62,96,75],[96,55,96,61],[97,120,97,132],[100,55,101,61],[101,76,101,90],[101,107,101,119],[100,62,101,75],[97,55,97,61],[98,29,98,134],[84,55,85,61],[87,62,87,75],[86,62,86,75],[93,133,93,147],[93,91,93,106],[93,76,93,90],[84,76,85,90],[87,91,87,106],[91,91,92,106],[89,91,89,106],[97,133,97,147],[106,148,107,163],[106,133,107,147],[104,55,105,61],[106,62,107,75],[103,148,103,163],[102,148,102,163],[103,133,103,147],[97,107,97,119],[97,62,97,75],[97,76,97,90],[91,0,91,48],[91,49,92,54],[94,62,94,75],[91,55,92,61],[94,0,94,48],[93,0,93,48],[91,62,92,75],[93,49,93,54],[94,55,94,61],[102,62,102,75],[96,120,96,132],[93,120,93,132],[93,107,93,119],[100,148,101,163],[96,148,96,163],[97,148,97,163],[101,133,101,147],[94,133,94,147],[100,76,100,147],[104,49,105,54],[96,133,96,147],[106,49,107,54],[101,91,101,106],[106,120,107,132],[102,91,102,106],[102,133,102,147],[104,120,105,132],[104,133,105,147],[102,49,102,54],[106,0,106,48],[96,107,96,119],[103,107,103,119],[103,120,103,132],[102,55,102,61],[105,0,105,48],[103,62,103,75],[104,62,105,75],[104,76,105,90],[104,0,104,48],[109,133,109,147],[108,148,108,163],[108,133,108,147],[108,120,108,132],[104,148,105,163],[107,0,107,48],[109,107,109,119],[109,0,109,48],[109,49,109,54],[108,0,108,48],[104,107,105,119],[104,91,105,106],[112,107,112,119],[110,91,110,106],[111,107,111,119],[108,107,108,119],[106,107,107,119],[109,91,109,106],[106,91,107,106],[108,76,108,90],[110,76,110,90],[109,76,109,90],[109,62,109,75],[110,62,110,75],[110,49,110,54],[110,55,110,61],[109,55,109,61],[108,55,108,61],[100,0,101,48],[103,49,103,54],[103,0,103,48],[103,55,103,61],[102,0,102,48],[100,49,101,54],[108,49,108,54],[101,120,101,132],[102,120,102,132],[102,107,102,119],[103,76,103,90],[102,76,102,90],[103,91,103,106],[108,62,108,75],[106,55,107,61],[106,76,107,90],[116,148,117,163],[121,91,121,106],[110,120,110,132],[111,91,111,106],[113,91,113,106],[110,107,110,119],[111,120,111,132],[112,91,112,106],[113,107,113,119],[114,148,114,163],[108,91,108,106],[115,91,115,106],[114,133,114,147],[115,148,115,163],[115,133,115,147],[114,120,114,132],[115,120,115,132],[110,148,110,163],[109,148,109,163],[109,120,109,132],[118,0,118,48],[114,0,114,48],[115,0,115,48],[114,49,114,54],[110,133,110,147],[115,107,115,119],[114,107,114,119],[111,55,111,61],[110,0,110,48],[111,133,111,147],[123,55,123,61],[122,91,122,106],[113,55,113,61],[111,62,111,75],[112,55,112,61],[113,76,113,90],[113,62,113,75],[112,76,112,90],[122,49,122,54],[112,0,112,48],[112,49,112,54],[111,0,111,48],[112,133,112,147],[112,120,112,132],[111,49,111,54],[111,76,111,90],[113,0,113,48],[113,49,113,54],[114,91,114,106],[118,107,118,119],[124,0,124,48],[121,0,121,48],[123,0,123,48],[122,0,122,48],[118,62,118,75],[124,49,124,54],[121,49,121,54],[119,49,119,54],[123,49,123,54],[115,49,115,54],[118,49,118,54],[116,49,117,54],[114,76,114,90],[116,107,117,119],[115,76,115,90],[116,62,117,75],[116,76,117,90],[114,62,114,75],[124,55,124,61],[112,148,112,163],[113,148,113,163],[111,148,111,163],[112,62,112,75],[113,120,113,132],[113,133,113,147],[118,76,118,90],[114,55,114,61],[115,62,115,75],[120,0,120,48],[119,0,119,48],[118,91,118,106],[115,55,115,61],[120,49,120,54],[116,0,116,48],[117,0,117,48],[119,91,119,106],[116,55,117,61],[118,55,118,61],[118,133,118,147],[119,148,119,163],[120,148,120,163],[118,148,118,163],[119,133,119,147],[120,133,120,147],[119,55,119,61],[120,55,120,61],[121,55,121,61],[122,55,122,61],[116,133,117,147],[118,120,118,132],[116,120,117,132],[116,91,117,106],[119,62,119,75],[119,76,119,90],[124,62,124,75],[122,76,122,90],[122,107,122,119],[122,120,122,132],[123,133,123,147],[134,148,135,163],[133,107,133,119],[133,120,133,132],[134,120,135,132],[133,148,133,163],[119,120,119,132],[121,76,121,90],[120,76,120,90],[120,120,120,132],[121,120,121,132],[125,148,126,163],[122,148,122,163],[123,148,123,163],[119,107,119,119],[124,76,124,90],[127,76,127,90],[121,62,121,75],[120,91,120,106],[120,107,120,119],[120,62,120,75],[121,107,121,119],[123,91,123,106],[122,62,122,75],[123,62,123,75],[130,148,131,163],[125,76,126,90],[125,91,126,106],[127,148,127,163],[127,107,127,119],[131,133,131,147],[124,91,124,106],[123,107,123,119],[124,107,124,119],[125,133,126,147],[124,133,124,147],[127,55,127,61],[127,62,127,75],[125,62,126,75],[125,55,126,61],[123,76,123,90],[124,148,124,163],[125,107,126,119],[124,120,124,132],[121,133,121,147],[123,120,123,132],[127,120,127,132],[125,120,126,132],[122,133,122,147],[127,133,127,147],[121,148,121,163],[133,55,133,61],[133,0,133,48],[132,0,132,48],[132,55,132,61],[130,49,131,54],[127,0,127,48],[132,49,132,54],[127,49,127,54],[130,62,131,75],[132,62,132,75],[132,91,132,106],[132,107,132,119],[125,0,125,48],[125,49,126,54],[130,0,131,48],[127,91,127,106],[134,0,134,48],[131,91,131,106],[132,120,132,132],[130,76,130,147],[131,107,131,119],[126,0,126,48],[132,76,132,90],[131,120,131,132],[130,55,131,61],[131,76,131,90],[134,55,135,61],[135,0,135,48],[136,107,136,119],[137,107,137,119],[138,107,139,119],[134,62,135,75],[136,62,136,75],[134,91,135,106],[139,0,139,48],[138,0,138,48],[133,133,133,147],[134,133,135,147],[134,107,135,119],[137,148,137,163],[132,133,132,147],[133,49,133,54],[134,76,135,90],[133,62,133,75],[133,76,133,90],[134,49,135,54],[138,55,139,61],[136,76,136,90],[136,49,136,54],[137,76,137,90],[136,55,136,61],[132,148,132,163],[138,91,139,106],[136,91,136,106],[137,91,137,106],[133,91,133,106],[140,49,140,54],[138,49,139,54],[137,0,137,48],[145,114,145,128],[144,38,144,65],[147,38,147,65],[144,13,144,34],[146,17,146,34],[147,17,147,34],[138,76,139,90],[137,133,137,147],[138,120,139,132],[138,148,139,163],[143,13,143,34],[146,38,146,65],[136,0,136,48],[137,55,137,61],[140,0,140,48],[140,62,140,75],[138,62,139,75],[140,55,140,61],[137,62,137,75],[137,49,137,54],[140,91,140,106],[140,76,140,90],[136,148,136,163],[138,133,139,147],[136,120,136,132],[136,133,136,147]],"merged_total":1030,"flags":["merged_cut"]}
[null,"ОТЧЕТ"]
[null,"ОБ ИСПОЛНЕНИИ УЧРЕЖДЕНИЕМ ПЛАНА ЕГО ФИНАНСОВО-ХОЗЯЙСТВЕННОЙ ДЕЯТЕЛЬНОСТИ",null,null,null,null,null,null,null,null,null,null,null,null,null,null,null,null,null,null,null,null,null,null,null,null,null,null,null,null,null,null,null,null,null,null,null,null,null,null,null,null,null,null,null,null,null,null,null,null,null,null,null,null,null,null,null,null,null,null,null,null,null,null,null,null,null,null,null,null,null,null,null,null,null,null,null,null,null,null,null,null,null,null,null,null,null,null,null,null,null,null,null,null,null,null,null,null,null,null,null,null,null,null,null,null,null,null,null,null,null,null,null,null,null,null,null,null,null,null,null,null,null,null,null,null,null,null,null,null,null,null,null,null,null,null,null,null,null,null,null,null,null,null,null,null,null,null,"КОДЫ"]
[null,null,null,null,null,null,null,null,null,null,null,null,null,null,null,null,null,null,null,null,null,null,null,null,null,null,null,null,null,null,null,null,null,null,null,null,null,null,null,null,null,null,null,null,null,null,null,null,null,null,null,null,null,null,null,null,null,null,null,null,null,null,null,null,null,null,null,null,null,null,null,null,null,null,null,null,null,null,null,null,null,null,null,null,null,null,null,null,null,null,null,null,null,null,null,null,null,null,null,null,null,null,null,null,null,null,null,null,null,null,null,null,null,null,null,null,null,null,null,null,null,null,null,null,null,null,null,null,null,null,null,null,null,null,null,null,null,null,null,null,null,null,null,null,null,null,"Форма по ОКУД",null,"0503737"]
[null,null,null,null,null,null,null,null,null,null,null,null,null,null,null,null,null,null,null,null,null,null,null,null,null,null,null,null,null,null,null,null,null,null,null,null,null,null,null,null,null,null,null,null,null,null,null,null,null,null,null,null,null,null,null,null,null,null,null,null,"на 1 ","января",null,null,null,null,null,null,null,null,null,null,null,null,null,null,null,null,null,null,null,null,20,null,null,null,"16",null,null," г.",null,null,null,null,null,null,null,null,null,null,null,null,null,null,null,null,null,null,null,null,null,null,null,null,null,null,null,null,null,null,null,null,null,null,null,null,null,null,null,null,null,null,null,null,null,null,null,null,null,null,null,null,null,null,null,null,"Дата"]
["Учреждение",null,null,null,null,null,null,null,null,null,null,null,null,null,null,null,null,null,null,null,null,null,null,null,null,null,null,null,null,null,"МБДОУ-Хотынецкий детский сад \"Алёнушка\"",null,null,null,null,null,null,null,null,null,null,null,null,null,null,null,null,null,null,null,null,null,null,null,null,null,null,null,null,null,null,null,null,null,null,null,null,null,null,null,null,null,null,null,null,null,null,null,null,null,null,null,null,null,null,null,null,null,null,null,null,null,null,null,null,null,null,null,null,null,null,null,null,null,null,null,null,null,null,null,null,null,null,null,null,null,null,null,null,null,null,null,null,null,null,null,null,null,null,null,null,null,null,null,null,null,null,null,null,null,null,null,null,null,null,null,"по ОКПО",null,"23220031"]
["Обособленное подразделение"]
["Учредитель",null,null,null,null,null,null,null,null,null,null,null,null,null,null,null,null,null,null,null,null,null,null,null,null,null,null,null,null,null,null,null,null,null,null,null,null,null,null,null,null,null,null,null,null,null,null,null,null,null,null,null,null,null,null,null,null,null,null,null,null,null,null,null,null,null,null,null,null,null,null,null,null,null,null,null,null,null,null,null,null,null,null,null,null,null,null,null,null,null,null,null,null,null,null,null,null,null,null,null,null,null,null,null,null,null,null,null,null,null,null,null,null,null,null,null,null,null,null,null,null,null,null,null,null,null,null,null,null,null,null,null,null,null,null,null,null,null,null,null,null,null,null,null,null,null,"по ОКАТО",null,"54257551000"]
["Наименование органа, осуществля-",null,null,null,null,null,null,null,null,null,null,null,null,null,null,null,null,null,null,null,null,null,null,null,null,null,null,null,null,null,null,null,null,null,null,null,null,null,null,null,null,null,null,null,null,null,null,null,null,null,null,null,null,null,null,null,null,null,null,null,null,null,null,null,null,null,null,null,null,null,null,null,null,null,null,null,null,null,null,null,null,null,null,null,null,null,null,null,null,null,null,null,null,null,null,null,null,null,null,null,null,null,null,null,null,null,null,null,null,null,null,null,null,null,null,null,null,null,null,null,null,null,null,null,null,null,null,null,null,null,null,null,null,null,null,null,null,null,null,null,null,null,null,null,null,null,"по ОКПО"]
["ющего полномочия учредителя",null,null,null,null,null,null,null,null,null,null,null,null,null,null,null,null,null,null,null,null,null,null,null,null,null,null,null,null,null,null,null,null,null,null,null,null,null,null,null,null,null,null,null,null,null,null,null,null,"Администрация Хотынецкого района Орловской области",null,null,null,null,null,null,null,null,null,null,null,null,null,null,null,null,null,null,null,null,null,null,null,null,null,null,null,null,null,null,null,null,null,null,null,null,null,null,null,null,null,null,null,null,null,null,null,null,null,null,null,null,null,null,null,null,null,null,null,null,null,null,null,null,null,null,null,null,null,null,null,null,null,null,null,null,null,null,null,null,null,null,null,null,null,null,null,null,null,null,null,null,null,null,null,null,"Глава по БК"]
["Вид финансового обеспечения (деятельности)",null,null,null,null,null,null,null,null,null,null,null,null,null,null,null,null,null,null,null,null,null,null,null,null,null,null,null,null,null,null,null,null,null,null,null,null,null,null,null,null,null,null,null,null,null,null,null,null,4]
["Периодичность: квартальная, годовая"]
["Единица измерения: руб.",null,null,null,null,null,null,null,null,null,null,null,null,null,null,null,null,null,null,null,null,null,null,null,null,null,null,null,null,null,null,null,null,null,null,null,null,null,null,null,null,null,null,null,null,null,null,null,null,null,null,null,null,null,null,null,null,null,null,null,null,null,null,null,null,null,null,null,null,null,null,null,null,null,null,null,null,null,null,null,null,null,null,null,null,null,null,null,null,null,null,null,null,null,null,null,null,null,null,null,null,null,null,null,null,null,null,null,null,null,null,null,null,null,null,null,null,null,null,null,null,null,null,null,null,null,null,null,null,null,null,null,null,null,null,null,null,null,null,null,null,null,null,null,null,null,"по ОКЕИ",null,"383"]
["1. Доходы учреждения"]
["Наименование показателя",null,null,null,null,null,null,null,null,null,null,null,null,null,null,null,null,null,null,null,null,null,null,null,null,null,null,null,null,null,null,null,null,null,null,null,null,null,null,null,null,null,null,null,null,null,null,null,null,"Код стро-ки",null,null,null,null,null,"Код анали-тики",null,null,null,null,null,null,"Утверждено плановых назначений",null,null,null,null,null,null,null,null,null,null,null,null,null,"Исполнено плановых назначений",null,null,null,null,null,null,null,null,null,null,null,null,null,null,null,null,null,null,null,null,null,null,null,null,null,null,null,null,null,null,null,null,null,null,null,null,null,null,null,null,null,null,null,null,null,null,null,null,null,null,null,null,null,null,null,null,null,null,null,null,null,null,null,null,null,null,null,null,null,null,null,"Не исполнено плановых назначений"]
[null,null,null,null,null,null,null,null,null,null,null,null,null,null,null,null,null,null,null,null,null,null,null,null,null,null,null,null,null,null,null,null,null,null,null,null,null,null,null,null,null,null,null,null,null,null,null,null,null,null,null,null,null,null,null,null,null,null,null,null,null,null,null,null,null,null,null,null,null,null,null,null,null,null,null,null,"через лицевые счета",null,null,null,null,null,null,null,null,null,null,null,null,null,null,"через банковские счета",null,null,null,null,null,null,null,null,null,null,null,null,null,null,null,"через кассу учреждения",null,null,null,null,null,null,null,null,null,null,null,null,"некассовыми операциями",null,null,null,null,null,null,null,null,null,null,null,null,"итого"]
[1,null,null,null,null,null,null,null,null,null,null,null,null,null,null,null,null,null,null,null,null,null,null,null,null,null,null,null,null,null,null,null,null,null,null,null,null,null,null,null,null,null,null,null,null,null,null,null,null,2,null,null,null,null,null,3,null,null,null,null,null,null,4,null,null,null,null,null,null,null,null,null,null,null,null,null,5,null,null,null,null,null,null,null,null,null,null,null,null,null,null,6,null,null,null,null,null,null,null,null,null,null,null,null,null,null,null,7,null,null,null,null,null,null,null,null,null,null,null,null,8,null,null,null,null,null,null,null,null,null,null,null,null,9,null,null,null,null,null,null,null,null,null,null,null,null,null,null,10]
["Доходы - всего",null,null,null,null,null,null,null,null,null,null,null,null,null,null,null,null,null,null,null,null,null,null,null,null,null,null,null,null,null,null,null,null,null,null,null,null,null,null,null,null,null,null,null,null,null,null,null,null,"010",null,null,null,null,null,null,null,null,null,null,null,null,{"$f":"BK36","v":10812761.789999999},null,null,null,null,null,null,null,null,null,null,null,null,null,{"$f":"BY36","v":10812761.789999999},null,null,null,null,null,null,null,null,null,null,null,null,null,null,null,null,null,null,null,null,null,null,null,null,null,null,null,null,null,null,null,null,null,null,null,null,null,null,null,null,null,null,null,null,null,null,null,null,null,null,null,null,null,null,null,null,{"$f":"BY17","v":10812761.789999999},null,null,null,null,null,null,null,null,null,null,null,null,null,null,{"$f":"BK17-ED17","v":0}]
["Доходы от собственности",null,null,null,null,null,null,null,null,null,null,null,null,null,null,null,null,null,null,null,null,null,null,null,null,null,null,null,null,null,null,null,null,null,null,null,null,null,null,null,null,null,null,null,null,null,null,null,null,"030",null,null,null,null,null,"120"]
["из них:",null,null,null,null,null,null,null,null,null,null,null,null,null,null,null,null,null,null,null,null,null,null,null,null,null,null,null,null,null,null,null,null,null,null,null,null,null,null,null,null,null,null,null,null,null,null,null,null,"101",null,null,null,null,null,"120"]
["от аренды активов"]
["Доходы от оказания платных услуг (работ)",null,null,null,null,null,null,null,null,null,null,null,null,null,null,null,null,null,null,null,null,null,null,null,null,null,null,null,null,null,null,null,null,null,null,null,null,null,null,null,null,null,null,null,null,null,null,null,null,"040",null,null,null,null,null,"130"]
["Доходы от штрафов, пеней, иных сумм принудительного изъятия",null,null,null,null,null,null,null,null,null,null,null,null,null,null,null,null,null,null,null,null,null,null,null,null,null,null,null,null,null,null,null,null,null,null,null,null,null,null,null,null,null,null,null,null,null,null,null,null,"050",null,null,null,null,null,"140"]
["Безвозмездные поступления от бюджетов",null,null,null,null,null,null,null,null,null,null,null,null,null,null,null,null,null,null,null,null,null,null,null,null,null,null,null,null,null,null,null,null,null,null,null,null,null,null,null,null,null,null,null,null,null,null,null,null,"060",null,null,null,null,null,"150"]
["в том числе:",null,null,null,null,null,null,null,null,null,null,null,null,null,null,null,null,null,null,null,null,null,null,null,null,null,null,null,null,null,null,null,null,null,null,null,null,null,null,null,null,null,null,null,null,null,null,null,null,"062",null,null,null,null,null,"152"]
["поступления от наднациональных организаций и правительств иностранных государств"]
["поступления от международных финансовых организаций",null,null,null,null,null,null,null,null,null,null,null,null,null,null,null,null,null,null,null,null,null,null,null,null,null,null,null,null,null,null,null,null,null,null,null,null,null,null,null,null,null,null,null,null,null,null,null,null,"063",null,null,null,null,null,"153"]
["Доходы от операций с активами",null,null,null,null,null,null,null,null,null,null,null,null,null,null,null,null,null,null,null,null,null,null,null,null,null,null,null,null,null,null,null,null,null,null,null,null,null,null,null,null,null,null,null,null,null,null,null,null,"090",null,null,null,null,null,"х"]
["в том числе:",null,null,null,null,null,null,null,null,null,null,null,null,null,null,null,null,null,null,null,null,null,null,null,null,null,null,null,null,null,null,null,null,null,null,null,null,null,null,null,null,null,null,null,null,null,null,null,null,"092",null,null,null,null,null,"410"]
["от выбытий основных средств"]
["от выбытий нематериальных активов",null,null,null,null,null,null,null,null,null,null,null,null,null,null,null,null,null,null,null,null,null,null,null,null,null,null,null,null,null,null,null,null,null,null,null,null,null,null,null,null,null,null,null,null,null,null,null,null,"093",null,null,null,null,null,"420"]
["от выбытий непроизведенных активов",null,null,null,null,null,null,null,null,null,null,null,null,null,null,null,null,null,null,null,null,null,null,null,null,null,null,null,null,null,null,null,null,null,null,null,null,null,null,null,null,null,null,null,null,null,null,null,null,"094",null,null,null,null,null,"430"]
["от выбытий материальных запасов",null,null,null,null,null,null,null,null,null,null,null,null,null,null,null,null,null,null,null,null,null,null,null,null,null,null,null,null,null,null,null,null,null,null,null,null,null,null,null,null,null,null,null,null,null,null,null,null,"095",null,null,null,null,null,"440"]
["от выбытий ценных бумаг, кроме акций",null,null,null,null,null,null,null,null,null,null,null,null,null,null,null,null,null,null,null,null,null,null,null,null,null,null,null,null,null,null,null,null,null,null,null,null,null,null,null,null,null,null,null,null,null,null,null,null,"096",null,null,null,null,null,"620"]
["от выбытий акций ",null,null,null,null,null,null,null,null,null,null,null,null,null,null,null,null,null,null,null,null,null,null,null,null,null,null,null,null,null,null,null,null,null,null,null,null,null,null,null,null,null,null,null,null,null,null,null,null,"097",null,null,null,null,null,"630"]
["от выбытий иных финансовых активов",null,null,null,null,null,null,null,null,null,null,null,null,null,null,null,null,null,null,null,null,null,null,null,null,null,null,null,null,null,null,null,null,null,null,null,null,null,null,null,null,null,null,null,null,null,null,null,null,"098",null,null,null,null,null,"650"]
["Прочие доходы",null,null,null,null,null,null,null,null,null,null,null,null,null,null,null,null,null,null,null,null,null,null,null,null,null,null,null,null,null,null,null,null,null,null,null,null,null,null,null,null,null,null,null,null,null,null,null,null,"100",null,null,null,null,null,"180",null,null,null,null,null,null,{"$f":"BK37+BK41","v":10812761.789999999},null,null,null,null,null,null,null,null,null,null,null,null,null,{"$f":"BY37+BY40+BY41","v":10812761.789999999},null,null,null,null,null,null,null,null,null,null,null,null,null,null,null,null,null,null,null,null,null,null,null,null,null,null,null,null,null,null,null,null,null,null,null,null,null,null,null,null,null,null,null,null,null,null,null,null,null,null,null,null,null,null,null,null,{"$f":"BY36","v":10812761.789999999},null,null,null,null,null,null,null,null,null,null,null,null,null,null,{"$f":"BK36-ED36","v":0}]
["из них:",null,null,null,null,null,null,null,null,null,null,null,null,null,null,null,null,null,null,null,null,null,null,null,null,null,null,null,null,null,null,null,null,null,null,null,null,null,null,null,null,null,null,null,null,null,null,null,null,"101",null,null,null,null,null,"180",null,null,null,null,null,null,10812761.789999999,null,null,null,null,null,null,null,null,null,null,null,null,null,10812761.789999999,null,null,null,null,null,null,null,null,null,null,null,null,null,null,null,null,null,null,null,null,null,null,null,null,null,null,null,null,null,null,null,null,null,null,null,null,null,null,null,null,null,null,null,null,null,null,null,null,null,null,null,null,null,null,null,null,{"$f":"BY37","v":10812761.789999999},null,null,null,null,null,null,null,null,null,null,null,null,null,null,{"$f":"BK37-ED37","v":0}]
["субсидии на выполнение государственного (муниципального) задания"]
["субсидии на иные цели ",null,null,null,null,null,null,null,null,null,null,null,null,null,null,null,null,null,null,null,null,null,null,null,null,null,null,null,null,null,null,null,null,null,null,null,null,null,null,null,null,null,null,null,null,null,null,null,null,"102",null,null,null,null,null,"180"]
["бюджетные инвестиции",null,null,null,null,null,null,null,null,null,null,null,null,null,null,null,null,null,null,null,null,null,null,null,null,null,null,null,null,null,null,null,null,null,null,null,null,null,null,null,null,null,null,null,null,null,null,null,null,"103",null,null,null,null,null,"180",null,null,null,null,null,null,null,null,null,null,null,null,null,null,null,null,null,null,null,null,null,null,null,null,null,null,null,null,null,null,null,null,null,null,null,null,null,null,null,null,null,null,null,null,null,null,null,null,null,null,null,null,null,null,null,null,null,null,null,null,null,null,null,null,null,null,null,null,null,null,null,null,null,null,null,null,null,{"$f":"BY40","v":0}]
["иные доходы",null,null,null,null,null,null,null,null,null,null,null,null,null,null,null,null,null,null,null,null,null,null,null,null,null,null,null,null,null,null,null,null,null,null,null,null,null,null,null,null,null,null,null,null,null,null,null,null,"104",null,null,null,null,null,"180",null,null,null,null,null,null,null,null,null,null,null,null,null,null,null,null,null,null,null,null,null,null,null,null,null,null,null,null,null,null,null,null,null,null,null,null,null,null,null,null,null,null,null,null,null,null,null,null,null,null,null,null,null,null,null,null,null,null,null,null,null,null,null,null,null,null,null,null,null,null,null,null,null,null,null,null,null,{"$f":"BY41","v":0}]
[null,null,null,null,null,null,null,null,null,null,null,null,null,null,null,null,null,null,null,null,null,null,null,null,null,null,null,null,null,"2. Расходы учреждения",null,null,null,null,null,null,null,null,null,null,null,null,null,null,null,null,null,null,null,null,null,null,null,null,null,null,null,null,null,null,null,null,null,null,null,null,null,null,null,null,null,null,null,null,null,null,null,null,null,null,null,null,null,null,null,null,null,null,null,null,null,null,null,null,null,null,null,null,null,null,null,null,null,null,null,null,null,null,null,null,null,null,null,null,null,null,null,null,null,null,null,null,null,null,null,null,null,null,null,null,null,null,null,null,null,null,null,null,null,null,null,null,null,null,null,null,null,null,null,null,null,null,null,null,null,null,null,null,null,null,null,null,null,"Форма 0503737 с. 2"]
[]
["Наименование показателя",null,null,null,null,null,null,null,null,null,null,null,null,null,null,null,null,null,null,null,null,null,null,null,null,null,null,null,null,null,null,null,null,null,null,null,null,null,null,null,null,null,null,null,null,null,null,null,null,"Код стро-ки",null,null,null,null,null,"Код анали-тики",null,null,null,null,null,null,"Утверждено плановых назначений",null,null,null,null,null,null,null,null,null,null,null,null,null,"Исполнено плановых назначений",null,null,null,null,null,null,null,null,null,null,null,null,null,null,null,null,null,null,null,null,null,null,null,null,null,null,null,null,null,null,null,null,null,null,null,null,null,null,null,null,null,null,null,null,null,null,null,null,null,null,null,null,null,null,null,null,null,null,null,null,null,null,null,null,null,null,null,null,null,null,null,"Не исполнено плановых назначений"]
[null,null,null,null,null,null,null,null,null,null,null,null,null,null,null,null,null,null,null,null,null,null,null,null,null,null,null,null,null,null,null,null,null,null,null,null,null,null,null,null,null,null,null,null,null,null,null,null,null,null,null,null,null,null,null,null,null,null,null,null,null,null,null,null,null,null,null,null,null,null,null,null,null,null,null,null,"через лицевые счета",null,null,null,null,null,null,null,null,null,null,null,null,null,null,"через банковские счета",null,null,null,null,null,null,null,null,null,null,null,null,null,null,null,"через кассу учреждения",null,null,null,null,null,null,null,null,null,null,null,null,"некассовыми операциями",null,null,null,null,null,null,null,null,null,null,null,null,"итого"]
[1,null,null,null,null,null,null,null,null,null,null,null,null,null,null,null,null,null,null,null,null,null,null,null,null,null,null,null,null,null,null,null,null,null,null,null,null,null,null,null,null,null,null,null,null,null,null,null,null,2,null,null,null,null,null,3,null,null,null,null,null,null,4,null,null,null,null,null,null,null,null,null,null,null,null,null,5,null,null,null,null,null,null,null,null,null,null,null,null,null,null,6,null,null,null,null,null,null,null,null,null,null,null,null,null,null,null,7,null,null,null,null,null,null,null,null,null,null,null,null,8,null,null,null,null,null,null,null,null,null,null,null,null,9,null,null,null,null,null,null,null,null,null,null,null,null,null,null,10]
["Расходы - всего",null,null,null,null,null,null,null,null,null,null,null,null,null,null,null,null,null,null,null,null,null,null,null,null,null,null,null,null,null,null,null,null,null,null,null,null,null,null,null,null,null,null,null,null,null,null,null,null,"200",null,null,null,null,null,"х",null,null,null,null,null,null,{"$f":"BK48+BK54+BK79+BK83+BK84","v":10812761.790000001},null,null,null,null,null,null,null,null,null,null,null,null,null,{"$f":"BY48+BY54+BY83+BY84","v":10812761.790000001},null,null,null,null,null,null,null,null,null,null,null,null,null,null,null,null,null,null,null,null,null,null,null,null,null,null,null,null,null,null,{"$f":"DD54+DD83+DD84","v":0},null,null,null,null,null,null,null,null,null,null,null,null,null,null,null,null,null,null,null,null,null,null,null,null,null,{"$f":"ED48+ED54+ED79+ED83+ED84","v":10812761.790000001},null,null,null,null,null,null,null,null,null,null,null,null,null,null,{"$f":"BK47-ED47","v":0}]
["в том числе:",null,null,null,null,null,null,null,null,null,null,null,null,null,null,null,null,null,null,null,null,null,null,null,null,null,null,null,null,null,null,null,null,null,null,null,null,null,null,null,null,null,null,null,null,null,null,null,null,"160",null,null,null,null,null,"210",null,null,null,null,null,null,{"$f":"BK50+BK52+BK53","v":8889827.6699999999},null,null,null,null,null,null,null,null,null,null,null,null,null,{"$f":"BY50+BY52+BY53","v":8889827.6699999999},null,null,null,null,null,null,null,null,null,null,null,null,null,null,null,null,null,null,null,null,null,null,null,null,null,null,null,null,null,null,null,null,null,null,null,null,null,null,null,null,null,null,null,null,null,null,null,null,null,null,null,null,null,null,null,null,{"$f":"ED50+ED52+ED53","v":8889827.6699999999},null,null,null,null,null,null,null,null,null,null,null,null,null,null,{"$f":"BK48-ED48","v":0}]
["Оплата труда и начисления на выплаты по оплате труда"]
["в том числе:",null,null,null,null,null,null,null,null,null,null,null,null,null,null,null,null,null,null,null,null,null,null,null,null,null,null,null,null,null,null,null,null,null,null,null,null,null,null,null,null,null,null,null,null,null,null,null,null,"161",null,null,null,null,null,"211",null,null,null,null,null,null,6915047.0099999998,null,null,null,null,null,null,null,null,null,null,null,null,null,6915047.0099999998,null,null,null,null,null,null,null,null,null,null,null,null,null,null,null,null,null,null,null,null,null,null,null,null,null,null,null,null,null,null,null,null,null,null,null,null,null,null,null,null,null,null,null,null,null,null,null,null,null,null,null,null,null,null,null,null,{"$f":"BY50","v":6915047.0099999998},null,null,null,null,null,null,null,null,null,null,null,null,null,null,{"$f":"BK50-ED50","v":0}]
["заработная плата"]
["прочие выплаты",null,null,null,null,null,null,null,null,null,null,null,null,null,null,null,null,null,null,null,null,null,null,null,null,null,null,null,null,null,null,null,null,null,null,null,null,null,null,null,null,null,null,null,null,null,null,null,null,"162",null,null,null,null,null,"212",null,null,null,null,null,null,0,null,null,null,null,null,null,null,null,null,null,null,null,null,0,null,null,null,null,null,null,null,null,null,null,null,null,null,null,0,null,null,null,null,null,null,null,null,null,null,null,null,null,null,null,null,null,null,null,null,null,null,null,null,null,null,null,null,null,null,null,null,null,null,null,null,null,null,null,null,null,{"$f":"BY52+DD52","v":0},null,null,null,null,null,null,null,null,null,null,null,null,null,null,{"$f":"BK52-ED52","v":0}]
["начисления на выплаты по оплате труда",null,null,null,null,null,null,null,null,null,null,null,null,null,null,null,null,null,null,null,null,null,null,null,null,null,null,null,null,null,null,null,null,null,null,null,null,null,null,null,null,null,null,null,null,null,null,null,null,"163",null,null,null,null,null,"213",null,null,null,null,null,null,1974780.66,null,null,null,null,null,null,null,null,null,null,null,null,null,1974780.66,null,null,null,null,null,null,null,null,null,null,null,null,null,null,null,null,null,null,null,null,null,null,null,null,null,null,null,null,null,null,null,null,null,null,null,null,null,null,null,null,null,null,null,null,null,null,null,null,null,null,null,null,null,null,null,null,{"$f":"BY53","v":1974780.66},null,null,null,null,null,null,null,null,null,null,null,null,null,null,{"$f":"BK53-ED53","v":0}]
["Приобретение работ, услуг",null,null,null,null,null,null,null,null,null,null,null,null,null,null,null,null,null,null,null,null,null,null,null,null,null,null,null,null,null,null,null,null,null,null,null,null,null,null,null,null,null,null,null,null,null,null,null,null,"170",null,null,null,null,null,"220",null,null,null,null,null,null,{"$f":"BK55+BK57+BK58+BK60+BK61","v":1820834.9000000001},null,null,null,null,null,null,null,null,null,null,null,null,null,{"$f":"BY55+BY57+BY58+BY60+BY61","v":1820834.9000000001},null,null,null,null,null,null,null,null,null,null,null,null,null,null,null,null,null,null,null,null,null,null,null,null,null,null,null,null,null,null,{"$f":"DD61","v":0},null,null,null,null,null,null,null,null,null,null,null,null,null,null,null,null,null,null,null,null,null,null,null,null,null,{"$f":"ED55+ED57+ED58+ED60+ED61","v":1820834.9000000001},null,null,null,null,null,null,null,null,null,null,null,null,null,null,{"$f":"BK54-ED54","v":0}]
["в том числе:",null,null,null,null,null,null,null,null,null,null,null,null,null,null,null,null,null,null,null,null,null,null,null,null,null,null,null,null,null,null,null,null,null,null,null,null,null,null,null,null,null,null,null,null,null,null,null,null,"171",null,null,null,null,null,"221",null,null,null,null,null,null,46193.83,null,null,null,null,null,null,null,null,null,null,null,null,null,46193.83,null,null,null,null,null,null,null,null,null,null,null,null,null,null,null,null,null,null,null,null,null,null,null,null,null,null,null,null,null,null,null,null,null,null,null,null,null,null,null,null,null,null,null,null,null,null,null,null,null,null,null,null,null,null,null,null,{"$f":"BY55","v":46193.83},null,null,null,null,null,null,null,null,null,null,null,null,null,null,{"$f":"BK55-ED55","v":0}]
["услуги связи"]
["транспортные услуги",null,null,null,null,null,null,null,null,null,null,null,null,null,null,null,null,null,null,null,null,null,null,null,null,null,null,null,null,null,null,null,null,null,null,null,null,null,null,null,null,null,null,null,null,null,null,null,null,"172",null,null,null,null,null,"222",null,null,null,null,null,null,0,null,null,null,null,null,null,null,null,null,null,null,null,null,0,null,null,null,null,null,null,null,null,null,null,null,null,null,null,null,null,null,null,null,null,null,null,null,null,null,null,null,null,null,null,null,null,null,null,null,null,null,null,null,null,null,null,null,null,null,null,null,null,null,null,null,null,null,null,null,null,null,null,null,null,null,null,null,null,null,null,null,null,null,null,null,{"$f":"BK57-BY57","v":0}]
["коммунальные услуги",null,null,null,null,null,null,null,null,null,null,null,null,null,null,null,null,null,null,null,null,null,null,null,null,null,null,null,null,null,null,null,null,null,null,null,null,null,null,null,null,null,null,null,null,null,null,null,null,"173",null,null,null,null,null,"223",null,null,null,null,null,null,1584021.11,null,null,null,null,null,null,null,null,null,null,null,null,null,1584021.11,null,null,null,null,null,null,null,null,null,null,null,null,null,null,null,null,null,null,null,null,null,null,null,null,null,null,null,null,null,null,null,null,null,null,null,null,null,null,null,null,null,null,null,null,null,null,null,null,null,null,null,null,null,null,null,null,{"$f":"BY58","v":1584021.11},null,null,null,null,null,null,null,null,null,null,null,null,null,null,{"$f":"BK58-ED58","v":0}]
["арендная плата за пользование имуществом",null,null,null,null,null,null,null,null,null,null,null,null,null,null,null,null,null,null,null,null,null,null,null,null,null,null,null,null,null,null,null,null,null,null,null,null,null,null,null,null,null,null,null,null,null,null,null,null,"174",null,null,null,null,null,"224"]
["работы, услуги по содержанию имущества",null,null,null,null,null,null,null,null,null,null,null,null,null,null,null,null,null,null,null,null,null,null,null,null,null,null,null,null,null,null,null,null,null,null,null,null,null,null,null,null,null,null,null,null,null,null,null,null,"175",null,null,null,null,null,"225",null,null,null,null,null,null,159319.96,null,null,null,null,null,null,null,null,null,null,null,null,null,159319.96,null,null,null,null,null,null,null,null,null,null,null,null,null,null,null,null,null,null,null,null,null,null,null,null,null,null,null,null,null,null,null,null,null,null,null,null,null,null,null,null,null,null,null,null,null,null,null,null,null,null,null,null,null,null,null,null,{"$f":"BY60","v":159319.96},null,null,null,null,null,null,null,null,null,null,null,null,null,null,{"$f":"BK60-ED60","v":0}]
["прочие работы, услуги",null,null,null,null,null,null,null,null,null,null,null,null,null,null,null,null,null,null,null,null,null,null,null,null,null,null,null,null,null,null,null,null,null,null,null,null,null,null,null,null,null,null,null,null,null,null,null,null,"176",null,null,null,null,null,"226",null,null,null,null,null,null,31300,null,null,null,null,null,null,null,null,null,null,null,null,null,31300,null,null,null,null,null,null,null,null,null,null,null,null,null,null,null,null,null,null,null,null,null,null,null,null,null,null,null,null,null,null,null,null,null,null,null,null,null,null,null,null,null,null,null,null,null,null,null,null,null,null,null,null,null,null,null,null,{"$f":"BY61+DD61","v":31300},null,null,null,null,null,null,null,null,null,null,null,null,null,null,{"$f":"BK61-ED61","v":0}]
["Обслуживание долговых обязательств",null,null,null,null,null,null,null,null,null,null,null,null,null,null,null,null,null,null,null,null,null,null,null,null,null,null,null,null,null,null,null,null,null,null,null,null,null,null,null,null,null,null,null,null,null,null,null,null,"190",null,null,null,null,null,"230"]
["в том числе:",null,null,null,null,null,null,null,null,null,null,null,null,null,null,null,null,null,null,null,null,null,null,null,null,null,null,null,null,null,null,null,null,null,null,null,null,null,null,null,null,null,null,null,null,null,null,null,null,"191",null,null,null,null,null,"231"]
["обслуживание долговых обязательств перед резидентами"]
["обслуживание долговых обязательств перед нерезидентами",null,null,null,null,null,null,null,null,null,null,null,null,null,null,null,null,null,null,null,null,null,null,null,null,null,null,null,null,null,null,null,null,null,null,null,null,null,null,null,null,null,null,null,null,null,null,null,null,"192",null,null,null,null,null,"232"]
["Безвозмездные перечисления организациям",null,null,null,null,null,null,null,null,null,null,null,null,null,null,null,null,null,null,null,null,null,null,null,null,null,null,null,null,null,null,null,null,null,null,null,null,null,null,null,null,null,null,null,null,null,null,null,null,"210",null,null,null,null,null,"240"]
["в том числе:",null,null,null,null,null,null,null,null,null,null,null,null,null,null,null,null,null,null,null,null,null,null,null,null,null,null,null,null,null,null,null,null,null,null,null,null,null,null,null,null,null,null,null,null,null,null,null,null,"211",null,null,null,null,null,"241"]
["безвозмездные перечисления государственным и муниципальным организациям"]
["безвозмездные перечисления организациям, за исключением государственных и муниципальных организаций",null,null,null,null,null,null,null,null,null,null,null,null,null,null,null,null,null,null,null,null,null,null,null,null,null,null,null,null,null,null,null,null,null,null,null,null,null,null,null,null,null,null,null,null,null,null,null,null,"212",null,null,null,null,null,"242"]
[null,null,null,null,null,null,null,null,null,null,null,null,null,null,null,null,null,null,null,null,null,null,null,null,null,null,null,null,null,null,null,null,null,null,null,null,null,null,null,null,null,null,null,null,null,null,null,null,null,null,null,null,null,null,null,null,null,null,null,null,null,null,null,null,null,null,null,null,null,null,null,null,null,null,null,null,null,null,null,null,null,null,null,null,null,null,null,null,null,null,null,null,null,null,null,null,null,null,null,null,null,null,null,null,null,null,null,null,null,null,null,null,null,null,null,null,null,null,null,null,null,null,null,null,null,null,null,null,null,null,null,null,null,null,null,null,null,null,null,null,null,null,null,null,null,null,null,null,null,null,null,null,null,null,null,null,null,null,null,null,null,null,null,"Форма 0503737 с. 3"]
[]
["Наименование показателя",null,null,null,null,null,null,null,null,null,null,null,null,null,null,null,null,null,null,null,null,null,null,null,null,null,null,null,null,null,null,null,null,null,null,null,null,null,null,null,null,null,null,null,null,null,null,null,null,"Код стро-ки",null,null,null,null,null,"Код анали-тики",null,null,null,null,null,null,"Утверждено плановых назначений",null,null,null,null,null,null,null,null,null,null,null,null,null,"Исполнено плановых назначений",null,null,null,null,null,null,null,null,null,null,null,null,null,null,null,null,null,null,null,null,null,null,null,null,null,null,null,null,null,null,null,null,null,null,null,null,null,null,null,null,null,null,null,null,null,null,null,null,null,null,null,null,null,null,null,null,null,null,null,null,null,null,null,null,null,null,null,null,null,null,null,"Не исполнено плановых назначений"]
[null,null,null,null,null,null,null,null,null,null,null,null,null,null,null,null,null,null,null,null,null,null,null,null,null,null,null,null,null,null,null,null,null,null,null,null,null,null,null,null,null,null,null,null,null,null,null,null,null,null,null,null,null,null,null,null,null,null,null,null,null,null,null,null,null,null,null,null,null,null,null,null,null,null,null,null,"через лицевые счета",null,null,null,null,null,null,null,null,null,null,null,null,null,null,"через банковские счета",null,null,null,null,null,null,null,null,null,null,null,null,null,null,null,"через кассу учреждения",null,null,null,null,null,null,null,null,null,null,null,null,"некассовыми операциями",null,null,null,null,null,null,null,null,null,null,null,null,"итого"]
[1,null,null,null,null,null,null,null,null,null,null,null,null,null,null,null,null,null,null,null,null,null,null,null,null,null,null,null,null,null,null,null,null,null,null,null,null,null,null,null,null,null,null,null,null,null,null,null,null,2,null,null,null,null,null,3,null,null,null,null,null,null,4,null,null,null,null,null,null,null,null,null,null,null,null,null,5,null,null,null,null,null,null,null,null,null,null,null,null,null,null,6,null,null,null,null,null,null,null,null,null,null,null,null,null,null,null,7,null,null,null,null,null,null,null,null,null,null,null,null,8,null,null,null,null,null,null,null,null,null,null,null,null,9,null,null,null,null,null,null,null,null,null,null,null,null,null,null,10]
["Безвозмездные перечисления бюджетам",null,null,null,null,null,null,null,null,null,null,null,null,null,null,null,null,null,null,null,null,null,null,null,null,null,null,null,null,null,null,null,null,null,null,null,null,null,null,null,null,null,null,null,null,null,null,null,null,"230",null,null,null,null,null,"250"]
["в том числе:",null,null,null,null,null,null,null,null,null,null,null,null,null,null,null,null,null,null,null,null,null,null,null,null,null,null,null,null,null,null,null,null,null,null,null,null,null,null,null,null,null,null,null,null,null,null,null,null,"232",null,null,null,null,null,"252"]
["перечисления наднациональным организациям и правительствам иностранных государств"]
["перечисления международным организациям",null,null,null,null,null,null,null,null,null,null,null,null,null,null,null,null,null,null,null,null,null,null,null,null,null,null,null,null,null,null,null,null,null,null,null,null,null,null,null,null,null,null,null,null,null,null,null,null,"233",null,null,null,null,null,"253"]
["Социальное обеспечение",null,null,null,null,null,null,null,null,null,null,null,null,null,null,null,null,null,null,null,null,null,null,null,null,null,null,null,null,null,null,null,null,null,null,null,null,null,null,null,null,null,null,null,null,null,null,null,null,"240",null,null,null,null,null,"260",null,null,null,null,null,null,{"$f":"BK80","v":0},null,null,null,null,null,null,null,null,null,null,null,null,null,{"$f":"BY80","v":0},null,null,null,null,null,null,null,null,null,null,null,null,null,null,0,null,null,null,null,null,null,null,null,null,null,null,null,null,null,null,null,null,null,null,null,null,null,null,null,null,null,null,null,null,null,null,null,null,null,null,null,null,null,null,null,null,{"$f":"BY79+DD79","v":0},null,null,null,null,null,null,null,null,null,null,null,null,null,null,{"$f":"BK79-ED79","v":0}]
["в том числе:",null,null,null,null,null,null,null,null,null,null,null,null,null,null,null,null,null,null,null,null,null,null,null,null,null,null,null,null,null,null,null,null,null,null,null,null,null,null,null,null,null,null,null,null,null,null,null,null,"242",null,null,null,null,null,"262",null,null,null,null,null,null,0,null,null,null,null,null,null,null,null,null,null,null,null,null,0,null,null,null,null,null,null,null,null,null,null,null,null,null,null,0,null,null,null,null,null,null,null,null,null,null,null,null,null,null,null,null,null,null,null,null,null,null,null,null,null,null,null,null,null,null,null,null,null,null,null,null,null,null,null,null,null,{"$f":"BY80+DD80","v":0},null,null,null,null,null,null,null,null,null,null,null,null,null,null,{"$f":"BK80-ED80","v":0}]
["пособия по социальной помощи населению"]
["пенсии, пособия, выплачиваемые организациями сектора государственного управления",null,null,null,null,null,null,null,null,null,null,null,null,null,null,null,null,null,null,null,null,null,null,null,null,null,null,null,null,null,null,null,null,null,null,null,null,null,null,null,null,null,null,null,null,null,null,null,null,"243",null,null,null,null,null,"263"]
["Прочие расходы",null,null,null,null,null,null,null,null,null,null,null,null,null,null,null,null,null,null,null,null,null,null,null,null,null,null,null,null,null,null,null,null,null,null,null,null,null,null,null,null,null,null,null,null,null,null,null,null,"250",null,null,null,null,null,"290",null,null,null,null,null,null,91475.22,null,null,null,null,null,null,null,null,null,null,null,null,null,91475.22,null,null,null,null,null,null,null,null,null,null,null,null,null,null,null,null,null,null,null,null,null,null,null,null,null,null,null,null,null,null,null,null,null,null,null,null,null,null,null,null,null,null,null,null,null,null,null,null,null,null,null,null,null,null,null,null,{"$f":"BY83+DD83","v":91475.22},null,null,null,null,null,null,null,null,null,null,null,null,null,null,{"$f":"BK83-ED83","v":0}]
["Расходы по приобретению нефинансовых активов ",null,null,null,null,null,null,null,null,null,null,null,null,null,null,null,null,null,null,null,null,null,null,null,null,null,null,null,null,null,null,null,null,null,null,null,null,null,null,null,null,null,null,null,null,null,null,null,null,"260",null,null,null,null,null,"300",null,null,null,null,null,null,{"$f":"BK89","v":10624},null,null,null,null,null,null,null,null,null,null,null,null,null,{"$f":"BY85+BY89","v":10624},null,null,null,null,null,null,null,null,null,null,null,null,null,null,{"$f":"CN85+CN89","v":0},null,null,null,null,null,null,null,null,null,null,null,null,null,null,null,{"$f":"DD89","v":0},null,null,null,null,null,null,null,null,null,null,null,null,null,null,null,null,null,null,null,null,null,null,null,null,null,{"$f":"BY84+DD84","v":10624},null,null,null,null,null,null,null,null,null,null,null,null,null,null,{"$f":"BK84-ED84","v":0}]
["в том числе:",null,null,null,null,null,null,null,null,null,null,null,null,null,null,null,null,null,null,null,null,null,null,null,null,null,null,null,null,null,null,null,null,null,null,null,null,null,null,null,null,null,null,null,null,null,null,null,null,"261",null,null,null,null,null,"310",null,null,null,null,null,null,null,null,null,null,null,null,null,null,null,null,null,null,null,null,null,null,null,null,null,null,null,null,null,null,null,null,null,null,null,null,null,null,null,null,null,null,null,null,null,null,null,null,null,null,null,null,null,null,null,null,null,null,null,null,null,null,null,null,null,null,null,null,null,null,null,null,null,null,null,null,null,{"$f":"BY85","v":0}]
["основных средств "]
["нематериальных активов",null,null,null,null,null,null,null,null,null,null,null,null,null,null,null,null,null,null,null,null,null,null,null,null,null,null,null,null,null,null,null,null,null,null,null,null,null,null,null,null,null,null,null,null,null,null,null,null,"262",null,null,null,null,null,"320"]
["непроизведенных активов",null,null,null,null,null,null,null,null,null,null,null,null,null,null,null,null,null,null,null,null,null,null,null,null,null,null,null,null,null,null,null,null,null,null,null,null,null,null,null,null,null,null,null,null,null,null,null,null,"263",null,null,null,null,null,"330"]
["материальных запасов",null,null,null,null,null,null,null,null,null,null,null,null,null,null,null,null,null,null,null,null,null,null,null,null,null,null,null,null,null,null,null,null,null,null,null,null,null,null,null,null,null,null,null,null,null,null,null,null,"264",null,null,null,null,null,"340",null,null,null,null,null,null,10624,null,null,null,null,null,null,null,null,null,null,null,null,null,10624,null,null,null,null,null,null,null,null,null,null,null,null,null,null,null,null,null,null,null,null,null,null,null,null,null,null,null,null,null,null,null,null,null,null,null,null,null,null,null,null,null,null,null,null,null,null,null,null,null,null,null,null,null,null,null,null,{"$f":"BY89+DD89","v":10624},null,null,null,null,null,null,null,null,null,null,null,null,null,null,{"$f":"BK89-ED89","v":0}]
["в т.ч. Продукты питания",null,null,null,null,null,null,null,null,null,null,null,null,null,null,null,null,null,null,null,null,null,null,null,null,null,null,null,null,null,null,null,null,null,null,null,null,null,null,null,null,null,null,null,null,null,null,null,null,null,null,null,null,null,null,null,null,null,null,null,null,null,null,null,null,null,null,null,null,null,null,null,null,null,null,null,null,null,null,null,null,null,null,null,null,null,null,null,null,null,null,null,null,null,null,null,null,null,null,null,null,null,null,null,null,null,null,null,null,null,null,null,null,null,null,null,null,null,null,null,null,null,null,null,null,null,null,null,null,null,null,null,null,{"$f":"BY90","v":0}]
["Расходы по приобретению финансовых активов ",null,null,null,null,null,null,null,null,null,null,null,null,null,null,null,null,null,null,null,null,null,null,null,null,null,null,null,null,null,null,null,null,null,null,null,null,null,null,null,null,null,null,null,null,null,null,null,null,"270",null,null,null,null,null,"500"]
["из них:",null,null,null,null,null,null,null,null,null,null,null,null,null,null,null,null,null,null,null,null,null,null,null,null,null,null,null,null,null,null,null,null,null,null,null,null,null,null,null,null,null,null,null,null,null,null,null,null,"271",null,null,null,null,null,"520"]
["ценных бумаг, кроме акций"]
["акций и иных форм участия в капитале",null,null,null,null,null,null,null,null,null,null,null,null,null,null,null,null,null,null,null,null,null,null,null,null,null,null,null,null,null,null,null,null,null,null,null,null,null,null,null,null,null,null,null,null,null,null,null,null,"272",null,null,null,null,null,"530"]
["иных финансовых активов",null,null,null,null,null,null,null,null,null,null,null,null,null,null,null,null,null,null,null,null,null,null,null,null,null,null,null,null,null,null,null,null,null,null,null,null,null,null,null,null,null,null,null,null,null,null,null,null,"273",null,null,null,null,null,"550"]
[null,null,null,null,null,null,null,null,null,null,null,null,null,null,null,null,null,null,null,null,null,null,null,null,null,null,null,null,null,null,null,null,null,null,null,null,null,null,null,null,null,null,null,null,null,null,null,null,null,null,null,null,null,null,null,null,null,null,null,null,null,null,null,null,null,null,null,null,null,null,null,null,null,null,null,null,null,null,null,null,null,null,null,null,null,null,null,null,null,null,null,37134.230000000003]
["Результат исполнения (дефицит/профицит)",null,null,null,null,null,null,null,null,null,null,null,null,null,null,null,null,null,null,null,null,null,null,null,null,null,null,null,null,null,null,null,null,null,null,null,null,null,null,null,null,null,null,null,null,null,null,null,null,"450",null,null,null,null,null,"х",null,null,null,null,null,null,null,null,null,null,null,null,null,null,null,null,null,null,null,null,null,null,null,null,null,null,null,null,null,null,null,null,null,null,null,{"$f":"ED17-ED47","v":0},null,null,null,null,null,null,null,null,null,null,null,null,null,null,null,null,null,null,null,null,null,null,null,null,null,null,null,null,null,null,null,null,null,null,null,null,null,null,null,null,null,{"$f":"ED17-ED47","v":0},null,null,null,null,null,null,null,null,null,null,null,null,null,null,"х"]
[null,null,null,null,null,null,null,null,null,null,null,null,null,null,null,null,null,null,null,null,null,null,null,null,null,null,null,null,null,null,null,null,null,null,null,null,null,null,null,null,null,null,null,null,null,null,null,null,null,null,null,null,null,null,null,null,null,null,null,null,null,null,null,null,null,null,null,null,null,null,null,null,null,null,null,null,null,null,null,null,null,null,null,null,null,null,null,null,null,null,null,null,null,null,null,null,null,null,null,null,null,null,null,null,null,null,null,null,null,null,null,null,null,null,null,null,null,null,null,null,null,null,null,null,null,null,null,null,null,null,null,null,null,20381.259999999998]
[null,null,null,null,null,null,null,null,null,null,null,null,null,null,null,null,null,null,null,null,null,null,null,null,null,null,null,null,null,"3. Источники финансирования дефицита средств учреждения",null,null,null,null,null,null,null,null,null,null,null,null,null,null,null,null,null,null,null,null,null,null,null,null,null,null,null,null,null,null,null,null,null,null,null,null,null,null,null,null,null,null,null,null,null,null,null,null,null,null,null,null,null,null,null,null,null,null,null,null,null,null,null,null,null,null,null,null,null,null,null,null,null,null,null,null,null,null,null,null,null,null,null,null,null,null,null,null,null,null,null,null,null,null,null,null,null,null,null,null,null,null,null,null,null,null,null,null,null,null,null,null,null,null,null,null,null,null,null,null,null,null,null,null,null,null,null,null,null,null,null,null,null,"Форма 0503737 с. 4"]
[]
["Наименование показателя",null,null,null,null,null,null,null,null,null,null,null,null,null,null,null,null,null,null,null,null,null,null,null,null,null,null,null,null,null,null,null,null,null,null,null,null,null,null,null,null,null,null,null,null,null,null,null,null,"Код стро-ки",null,null,null,null,null,"Код анали-тики",null,null,null,null,null,null,"Утверждено плановых назначений",null,null,null,null,null,null,null,null,null,null,null,null,null,"Исполнено плановых назначений",null,null,null,null,null,null,null,null,null,null,null,null,null,null,null,null,null,null,null,null,null,null,null,null,null,null,null,null,null,null,null,null,null,null,null,null,null,null,null,null,null,null,null,null,null,null,null,null,null,null,null,null,null,null,null,null,null,null,null,null,null,null,null,null,null,null,null,null,null,null,null,"Не исполнено плановых назначений"]
[null,null,null,null,null,null,null,null,null,null,null,null,null,null,null,null,null,null,null,null,null,null,null,null,null,null,null,null,null,null,null,null,null,null,null,null,null,null,null,null,null,null,null,null,null,null,null,null,null,null,null,null,null,null,null,null,null,null,null,null,null,null,null,null,null,null,null,null,null,null,null,null,null,null,null,null,"через лицевые счета",null,null,null,null,null,null,null,null,null,null,null,null,null,null,"через банковские счета",null,null,null,null,null,null,null,null,null,null,null,null,null,null,null,"через кассу учреждения",null,null,null,null,null,null,null,null,null,null,null,null,"некассовыми операциями",null,null,null,null,null,null,null,null,null,null,null,null,"итого"]
[1,null,null,null,null,null,null,null,null,null,null,null,null,null,null,null,null,null,null,null,null,null,null,null,null,null,null,null,null,null,null,null,null,null,null,null,null,null,null,null,null,null,null,null,null,null,null,null,null,2,null,null,null,null,null,3,null,null,null,null,null,null,4,null,null,null,null,null,null,null,null,null,null,null,null,null,5,null,null,null,null,null,null,null,null,null,null,null,null,null,null,6,null,null,null,null,null,null,null,null,null,null,null,null,null,null,null,7,null,null,null,null,null,null,null,null,null,null,null,null,8,null,null,null,null,null,null,null,null,null,null,null,null,9,null,null,null,null,null,null,null,null,null,null,null,null,null,null,10]
["Источники финансирования дефицита средств - всего (стр. 520 + стр. 620 + стр. 700 + стр. 820 + стр. 830)",null,null,null,null,null,null,null,null,null,null,null,null,null,null,null,null,null,null,null,null,null,null,null,null,null,null,null,null,null,null,null,null,null,null,null,null,null,null,null,null,null,null,null,null,null,null,null,null,"500"]
["в том числе:",null,null,null,null,null,null,null,null,null,null,null,null,null,null,null,null,null,null,null,null,null,null,null,null,null,null,null,null,null,null,null,null,null,null,null,null,null,null,null,null,null,null,null,null,null,null,null,null,"520"]
["Внутренние источники "]
["из них:",null,null,null,null,null,null,null,null,null,null,null,null,null,null,null,null,null,null,null,null,null,null,null,null,null,null,null,null,null,null,null,null,null,null,null,null,null,null,null,null,null,null,null,null,null,null,null,null,"521",null,null,null,null,null,"171"]
["положительная курсовая разница"]
["отрицательная курсовая разница",null,null,null,null,null,null,null,null,null,null,null,null,null,null,null,null,null,null,null,null,null,null,null,null,null,null,null,null,null,null,null,null,null,null,null,null,null,null,null,null,null,null,null,null,null,null,null,null,"522",null,null,null,null,null,"171"]
["поступления средств учреждения с депозитов",null,null,null,null,null,null,null,null,null,null,null,null,null,null,null,null,null,null,null,null,null,null,null,null,null,null,null,null,null,null,null,null,null,null,null,null,null,null,null,null,null,null,null,null,null,null,null,null,"523",null,null,null,null,null,"510"]
["размещение средств учреждения на депозиты",null,null,null,null,null,null,null,null,null,null,null,null,null,null,null,null,null,null,null,null,null,null,null,null,null,null,null,null,null,null,null,null,null,null,null,null,null,null,null,null,null,null,null,null,null,null,null,null,"524",null,null,null,null,null,"610"]
["поступления от погашения займов (ссуд)",null,null,null,null,null,null,null,null,null,null,null,null,null,null,null,null,null,null,null,null,null,null,null,null,null,null,null,null,null,null,null,null,null,null,null,null,null,null,null,null,null,null,null,null,null,null,null,null,"525",null,null,null,null,null,"640"]
["выплаты по предоставлению займов (ссуд) ",null,null,null,null,null,null,null,null,null,null,null,null,null,null,null,null,null,null,null,null,null,null,null,null,null,null,null,null,null,null,null,null,null,null,null,null,null,null,null,null,null,null,null,null,null,null,null,null,"526",null,null,null,null,null,"540"]
["поступления заимствований от резидентов",null,null,null,null,null,null,null,null,null,null,null,null,null,null,null,null,null,null,null,null,null,null,null,null,null,null,null,null,null,null,null,null,null,null,null,null,null,null,null,null,null,null,null,null,null,null,null,null,"527",null,null,null,null,null,"710"]
["погашение заимствований от нерезидентов",null,null,null,null,null,null,null,null,null,null,null,null,null,null,null,null,null,null,null,null,null,null,null,null,null,null,null,null,null,null,null,null,null,null,null,null,null,null,null,null,null,null,null,null,null,null,null,null,"528",null,null,null,null,null,"810"]
["Внешние источники",null,null,null,null,null,null,null,null,null,null,null,null,null,null,null,null,null,null,null,null,null,null,null,null,null,null,null,null,null,null,null,null,null,null,null,null,null,null,null,null,null,null,null,null,null,null,null,null,"620"]
["из них:",null,null,null,null,null,null,null,null,null,null,null,null,null,null,null,null,null,null,null,null,null,null,null,null,null,null,null,null,null,null,null,null,null,null,null,null,null,null,null,null,null,null,null,null,null,null,null,null,"621",null,null,null,null,null,"171"]
["положительная курсовая разница"]
["отрицательная курсовая разница",null,null,null,null,null,null,null,null,null,null,null,null,null,null,null,null,null,null,null,null,null,null,null,null,null,null,null,null,null,null,null,null,null,null,null,null,null,null,null,null,null,null,null,null,null,null,null,null,"622",null,null,null,null,null,"171"]
["поступления заимствований от резидентов",null,null,null,null,null,null,null,null,null,null,null,null,null,null,null,null,null,null,null,null,null,null,null,null,null,null,null,null,null,null,null,null,null,null,null,null,null,null,null,null,null,null,null,null,null,null,null,null,"625",null,null,null,null,null,"720"]
["погашение заимствований от нерезидентов",null,null,null,null,null,null,null,null,null,null,null,null,null,null,null,null,null,null,null,null,null,null,null,null,null,null,null,null,null,null,null,null,null,null,null,null,null,null,null,null,null,null,null,null,null,null,null,null,"626",null,null,null,null,null,"820"]
["Изменение остатков средств",null,null,null,null,null,null,null,null,null,null,null,null,null,null,null,null,null,null,null,null,null,null,null,null,null,null,null,null,null,null,null,null,null,null,null,null,null,null,null,null,null,null,null,null,null,null,null,null,"700",null,null,null,null,null,"х"]
["увеличение остатков средств, всего",null,null,null,null,null,null,null,null,null,null,null,null,null,null,null,null,null,null,null,null,null,null,null,null,null,null,null,null,null,null,null,null,null,null,null,null,null,null,null,null,null,null,null,null,null,null,null,null,"710",null,null,null,null,null,"510",null,null,null,null,null,null,null,null,null,null,null,null,null,null,null,null,null,null,null,null,null,null,null,null,null,null,null,null,null,null,null,null,null,null,null,null,null,null,null,null,null,null,null,null,null,null,null,null,null,null,null,null,null,null,null,null,null,null,null,null,null,null,null,null,null,null,null,null,null,null,null,null,null,null,null,null,null,null,null,null,null,null,null,null,null,null,null,null,null,null,null,null,"х"]
["уменьшение остатков средств, всего",null,null,null,null,null,null,null,null,null,null,null,null,null,null,null,null,null,null,null,null,null,null,null,null,null,null,null,null,null,null,null,null,null,null,null,null,null,null,null,null,null,null,null,null,null,null,null,null,"720",null,null,null,null,null,"610",null,null,null,null,null,null,null,null,null,null,null,null,null,null,null,null,null,null,null,null,null,null,null,null,null,null,null,null,null,null,null,null,null,null,null,null,null,null,null,null,null,null,null,null,null,null,null,null,null,null,null,null,null,null,null,null,null,null,null,null,null,null,null,null,null,null,null,null,null,null,null,null,null,null,null,null,null,null,null,null,null,null,null,null,null,null,null,null,null,null,null,null,"х"]
["Изменение остатков по внутренним оборотам средств учреждения",null,null,null,null,null,null,null,null,null,null,null,null,null,null,null,null,null,null,null,null,null,null,null,null,null,null,null,null,null,null,null,null,null,null,null,null,null,null,null,null,null,null,null,null,null,null,null,null,"730",null,null,null,null,null,"х"]
["в том числе:",null,null,null,null,null,null,null,null,null,null,null,null,null,null,null,null,null,null,null,null,null,null,null,null,null,null,null,null,null,null,null,null,null,null,null,null,null,null,null,null,null,null,null,null,null,null,null,null,"731",null,null,null,null,null,"510"]
["увеличение остатков средств учреждения "]
["уменьшение остатков средств учреждения",null,null,null,null,null,null,null,null,null,null,null,null,null,null,null,null,null,null,null,null,null,null,null,null,null,null,null,null,null,null,null,null,null,null,null,null,null,null,null,null,null,null,null,null,null,null,null,null,"732",null,null,null,null,null,"610"]
[null,null,null,null,null,null,null,null,null,null,null,null,null,null,null,null,null,null,null,null,null,null,null,null,null,null,null,null,null,null,null,null,null,null,null,null,null,null,null,null,null,null,null,null,null,null,null,null,null,null,null,null,null,null,null,null,null,null,null,null,null,null,null,null,null,null,null,null,null,null,null,null,null,null,null,null,null,null,null,null,null,null,null,null,null,null,null,null,null,null,null,null,null,null,null,null,null,null,null,null,null,null,null,null,null,null,null,null,null,null,null,null,null,null,null,null,null,null,null,null,null,null,null,null,null,null,null,null,null,null,null,null,null,null,null,null,null,null,null,null,null,null,null,null,null,null,null,null,null,null,null,null,null,null,null,null,null,null,null,null,null,null,null,"Форма 0503737 с. 5"]
[]
["Наименование показателя",null,null,null,null,null,null,null,null,null,null,null,null,null,null,null,null,null,null,null,null,null,null,null,null,null,null,null,null,null,null,null,null,null,null,null,null,null,null,null,null,null,null,null,null,null,null,null,null,"Код стро-ки",null,null,null,null,null,"Код анали-тики",null,null,null,null,null,null,"Утверждено плановых назначений",null,null,null,null,null,null,null,null,null,null,null,null,null,"Исполнено плановых назначений",null,null,null,null,null,null,null,null,null,null,null,null,null,null,null,null,null,null,null,null,null,null,null,null,null,null,null,null,null,null,null,null,null,null,null,null,null,null,null,null,null,null,null,null,null,null,null,null,null,null,null,null,null,null,null,null,null,null,null,null,null,null,null,null,null,null,null,null,null,null,null,"Не исполнено плановых назначений"]
[null,null,null,null,null,null,null,null,null,null,null,null,null,null,null,null,null,null,null,null,null,null,null,null,null,null,null,null,null,null,null,null,null,null,null,null,null,null,null,null,null,null,null,null,null,null,null,null,null,null,null,null,null,null,null,null,null,null,null,null,null,null,null,null,null,null,null,null,null,null,null,null,null,null,null,null,"через лицевые счета",null,null,null,null,null,null,null,null,null,null,null,null,null,null,"через банковские счета",null,null,null,null,null,null,null,null,null,null,null,null,null,null,null,"через кассу учреждения",null,null,null,null,null,null,null,null,null,null,null,null,"некассовыми операциями",null,null,null,null,null,null,null,null,null,null,null,null,"итого"]
[1,null,null,null,null,null,null,null,null,null,null,null,null,null,null,null,null,null,null,null,null,null,null,null,null,null,null,null,null,null,null,null,null,null,null,null,null,null,null,null,null,null,null,null,null,null,null,null,null,2,null,null,null,null,null,3,null,null,null,null,null,null,4,null,null,null,null,null,null,null,null,null,null,null,null,null,5,null,null,null,null,null,null,null,null,null,null,null,null,null,null,6,null,null,null,null,null,null,null,null,null,null,null,null,null,null,null,7,null,null,null,null,null,null,null,null,null,null,null,null,8,null,null,null,null,null,null,null,null,null,null,null,null,9,null,null,null,null,null,null,null,null,null,null,null,null,null,null,10]
["Изменение остатков по внутренним расчетам ",null,null,null,null,null,null,null,null,null,null,null,null,null,null,null,null,null,null,null,null,null,null,null,null,null,null,null,null,null,null,null,null,null,null,null,null,null,null,null,null,null,null,null,null,null,null,null,null,"820",null,null,null,null,null,"х"]
["в том числе:",null,null,null,null,null,null,null,null,null,null,null,null,null,null,null,null,null,null,null,null,null,null,null,null,null,null,null,null,null,null,null,null,null,null,null,null,null,null,null,null,null,null,null,null,null,null,null,null,"821"]
["увеличение остатков по внутренним расчетам (Кт 030404510)"]
["уменьшение остатков по внутренним расчетам (Дт 030404610)",null,null,null,null,null,null,null,null,null,null,null,null,null,null,null,null,null,null,null,null,null,null,null,null,null,null,null,null,null,null,null,null,null,null,null,null,null,null,null,null,null,null,null,null,null,null,null,null,"822"]
["Изменение остатков расчетов по внутренним привлечениям средств ",null,null,null,null,null,null,null,null,null,null,null,null,null,null,null,null,null,null,null,null,null,null,null,null,null,null,null,null,null,null,null,null,null,null,null,null,null,null,null,null,null,null,null,null,null,null,null,null,"830",null,null,null,null,null,"х"]
["в том числе:",null,null,null,null,null,null,null,null,null,null,null,null,null,null,null,null,null,null,null,null,null,null,null,null,null,null,null,null,null,null,null,null,null,null,null,null,null,null,null,null,null,null,null,null,null,null,null,null,"831"]
["увеличение расчетов по внутреннему привлечению остатков средств (Кт 030406000)"]
["уменьшение расчетов по внутреннему привлечению остатков средств (Дт 030406000)",null,null,null,null,null,null,null,null,null,null,null,null,null,null,null,null,null,null,null,null,null,null,null,null,null,null,null,null,null,null,null,null,null,null,null,null,null,null,null,null,null,null,null,null,null,null,null,null,"832"]
[]
[]
["Руководитель",null,null,null,null,null,null,null,null,null,null,null,null,null,null,null,null,null,null,null,null,null,null,null,null,null,null,null,null,null,null,null,null,null,null,null,null,null,"Алехина С.В.",null,null,null,null,null,null,null,null,null,null,null,null,null,null,null,null,null,null,null,null,null,null,null,null,null,null,null,null,null,null,null,null,null,null,null,null,null,null,null,null,null,null,null,null,null,null,null,null,null,null,null,null,"Руководитель финансово-"]
[null,null,null,null,null,null,null,null,null,null,null,null,null,"(подпись)",null,null,null,null,null,null,null,null,null,null,null,null,null,null,null,null,null,null,null,null,null,null,null,null,"(расшифровка подписи)",null,null,null,null,null,null,null,null,null,null,null,null,null,null,null,null,null,null,null,null,null,null,null,null,null,null,null,null,null,null,null,null,null,null,null,null,null,null,null,null,null,null,null,null,null,null,null,null,null,null,null,null,"экономической службы"]
[null,null,null,null,null,null,null,null,null,null,null,null,null,null,null,null,null,null,null,null,null,null,null,null,null,null,null,null,null,null,null,null,null,null,null,null,null,null,null,null,null,null,null,null,null,null,null,null,null,null,null,null,null,null,null,null,null,null,null,null,null,null,null,null,null,null,null,null,null,null,null,null,null,null,null,null,null,null,null,null,null,null,null,null,null,null,null,null,null,null,null,null,null,null,null,null,null,null,null,null,null,null,null,null,null,null,null,null,null,null,null,null,null,null,"(подпись)",null,null,null,null,null,null,null,null,null,null,null,null,null,null,null,null,null,"(расшифровка подписи)"]
["Главный бухгалтер",null,null,null,null,null,null,null,null,null,null,null,null,null,null,null,null,null,null,null,null,null,null,null,null,null,null,null,null,null,null,null,null,null,null,null,null,null,"Тимошина Л.П."]
[null,null,null,null,null,null,null,null,null,null,null,null,null,null,null,null,null,"(подпись)",null,null,null,null,null,null,null,null,null,null,null,null,null,null,null,null,null,null,null,null,"(расшифровка подписи)"]
[]
[]
[null,null,null,null,null,null,null,null,null,null,null,null,null,null,null,null,null,null,null,null,null,null,null,null,null,null,null,null,null,null,null,null,null,null,null,null,null,null,null,null,null,null,null,null,null,null,null,null,null,null,null,null,null,null,null,null,null,null,null,null,null,null,null,null,"Централизованная бухгалтерия"]
[null,null,null,null,null,null,null,null,null,null,null,null,null,null,null,null,null,null,null,null,null,null,null,null,null,null,null,null,null,null,null,null,null,null,null,null,null,null,null,null,null,null,null,null,null,null,null,null,null,null,null,null,null,null,null,null,null,null,null,null,null,null,null,null,null,null,null,null,null,null,null,null,null,null,null,null,null,null,null,null,null,null,null,null,null,null,null,null,null,null,null,null,null,null,null,null,null,"(наименование, ОГРН, ИНН, КПП, местонахождение)"]
[null,null,null,null,null,null,null,null,null,null,null,null,null,null,null,null,null,null,null,null,null,null,null,null,null,null,null,null,null,null,null,null,null,null,null,null,null,null,null,null,null,null,null,null,null,null,null,null,null,null,null,null,null,null,null,null,null,null,null,null,null,null,null,null,"Руководитель"]
[null,null,null,null,null,null,null,null,null,null,null,null,null,null,null,null,null,null,null,null,null,null,null,null,null,null,null,null,null,null,null,null,null,null,null,null,null,null,null,null,null,null,null,null,null,null,null,null,null,null,null,null,null,null,null,null,null,null,null,null,null,null,null,null,"(уполномоченное лицо)"]
[null,null,null,null,null,null,null,null,null,null,null,null,null,null,null,null,null,null,null,null,null,null,null,null,null,null,null,null,null,null,null,null,null,null,null,null,null,null,null,null,null,null,null,null,null,null,null,null,null,null,null,null,null,null,null,null,null,null,null,null,null,null,null,null,null,null,null,null,null,null,null,null,null,null,null,null,null,null,null,null,null,null,null,null,null,null,"(должность)",null,null,null,null,null,null,null,null,null,null,null,null,null,null,null,null,null,null,null,null,null,null,null,null,null,null,null,null,"(подпись)",null,null,null,null,null,null,null,null,null,null,null,null,null,null,null,null,null,null,null,null,"(расшифровка подписи)"]
[]
["Исполнитель",null,null,null,null,null,null,null,null,null,null,null,null,"Главный бухгалтер",null,null,null,null,null,null,null,null,null,null,null,null,null,null,null,null,null,null,null,null,null,null,null,null,null,null,null,null,null,null,null,null,null,null,null,null,null,null,null,null,null,null,null,null,null,null,null,"Тимошина Л.П.",null,null,null,null,null,null,null,null,null,null,null,null,null,null,null,null,null,null,null,null,null,null,null,null,null,null,null,null,null,"2-13-03"]
[null,null,null,null,null,null,null,null,null,null,null,null,null,"(должность)",null,null,null,null,null,null,null,null,null,null,null,null,null,null,null,null,null,null,null,null,null,null,null,null,null,null,null,"(подпись)",null,null,null,null,null,null,null,null,null,null,null,null,null,null,null,null,null,null,null,"(расшифровка подписи)",null,null,null,null,null,null,null,null,null,null,null,null,null,null,null,null,null,null,null,null,null,null,null,null,null,null,null,null,null,"(телефон, e-mail)"]
[]
["\"",null,"11",null,null,"\"",null,null,"января",null,null,null,null,null,null,null,null,null,null,null,null,null,null,null,20,null,null,null,"16",null,null," г."]
[null,null,null,null,null,null,null,null,318445.8]